Cogmind - Beta 16.1 @@@ ROGUE MODE // 2026.02.12 @ 02:23:14 Player: Fantastic Ms. Fox Result: Destroyed by S-10 Pest with Light Assault Rifle Performance ------------- Evolutions (0) 0 Regions Visited (1) 200 Robots Destroyed (4) 20 Value Destroyed (61) 61 Prototype IDs (0) 0 Alien Tech Used (0) 0 Bonus (0) 0 TOTAL SCORE: 281 Bonus ------- None Cogmind --------- Core Integrity 0/250 Matter 262/300 Energy 124/125 System Corruption 0% Temperature Cool (0) Movement Core (150) Ox2 Location -10/Materials Parts ------- > --- POWER (1) -------- Light Ion Engine > --- PROPULSION (2) --- (None) > --- UTILITY (2) ------ (None) > --- WEAPON (2) ------- Light Assault Rifle Grenade Launcher > --- INVENTORY (5) ---- (None) Peak State ------------ > --- POWER ------------ Light Ion Engine > --- PROPULSION ------- Aluminum Leg Aluminum Leg > --- UTILITY ---------- Seismic Detector > --- WEAPON ----------- Small Laser Small Laser > --- INVENTORY -------- Aluminum Leg Aluminum Leg Light Assault Rifle [Rating: 6] Favorites ----------- Power Light Ion Engine Engine Light Ion Engine Propulsion Aluminum Leg Leg Aluminum Leg Utility Seismic Detector Device Seismic Detector Weapon Small Laser Energy Gun Small Laser Ballistic Gun Light Assault Rifle Launcher Grenade Launcher Special Weapon Mining Laser Slashing Weapon Mining Claw Special Melee Weapon Datajack Build | -11 -10 ------- Run | Yrd Mat Slots Evolved . | . . Power . | . . Propulsion . | . . Utility . | . . Weapon . | . . Parts Attached 15 | 6 9 Power 3 | 1 2 Engine 3 | 1 2 Core . | . . Reactor . | . . Propulsion 4 | 2 2 Treads . | . . Leg 4 | 2 2 Wheel . | . . Hover . | . . Flight . | . . Utility 1 | 1 . Device 1 | 1 . Storage . | . . Processor . | . . Hackware . | . . Protection . | . . Artifact . | . . Weapon 7 | 2 5 Energy Gun 2 | 2 . Energy Cannon . | . . Ballistic Gun 1 | . 1 Ballistic Cannon . | . . Launcher 1 | . 1 Special Weapon 1 | . 1 Impact Weapon . | . . Slashing Weapon 1 | . 1 Piercing Weapon . | . . Special Melee Weapon 1 | . 1 Unidentified Prototypes . | . . Parts Lost 9 | . 9 Power 2 | . 2 Propulsion 4 | . 4 Utility 1 | . 1 Weapon 2 | . 2 Highest Loss Streak 8 | . 8 To Critical Strikes . | . . Average Backups 4 | 2 4 Power . | . . Propulsion 1 | 1 1 Utility . | . . Weapon 1 | . 1 Tool/Special . | . . Unused Backups 2 | 2 . Power . | . . Propulsion 2 | 2 . Utility . | . . Weapon . | . . Tool/Special . | . . Average Slot Usage (%) 75 | . 75 Engine 13 | . 13 Leg 26 | . 26 Device 9 | . 9 Energy Gun 9 | . 9 Slashing Weapon 7 | . 7 Special Melee Weapon 7 | . 7 Peak Build Rating 6 | 6 6 Average Rating 4 | 3 5 On Entrance 3 | . 6 Avg Prop Armor Cover (%) . | . . Naked Turns . | . . Heaviest Build 7 | 6 7 Greatest Support 20 | 20 20 Greatest Overweight (x) . | . . Average Overweight (x) . | . . Largest Inventory Capacity 5 | 5 5 Average Capacity 5 | 5 5 Most Carried 5 | 4 5 Average Carried 4 | 2 4 Final Capacity 5 | 5 5 Final Carried 4 | 4 . Class Distribution -------------------- 100% | Mutant Dominant Class ---------------- Mutant | -10/Materials Resources | -11 -10 ----------- Run | Yrd Mat Matter Collected 285 | 260 25 Remotely . | . . Salvage Created 89 | 61 28 Parts 7 | 6 1 Haulers Intercepted . | . . Recyclers Shooed . | . . Parts Field Recycled . | . . Retrieved Matter . | . . Parts Self-Destructed . | . . Prevented . | . . Parts Restored . | . . Kills | -11 -10 ------- Run | Yrd Mat Combat Hostiles Destroyed 3 | 1 2 Melee 2 | . 2 Guns 1 | 1 . Classes Destroyed 3 | 2 1 Tunneler 1 | 1 . Swarmer 2 | . 2 Grunt 1 | 1 . Best Kill Streak 2 | 2 1 Combat Bots Only 1 | 1 1 Max Kills in Single Turn 1 | 1 1 Gunslinging . | . . Exploded . | . . Melee 1 | . 1 Uniques/NPCs Destroyed . | . . Combat | -11 -10 -------- Run | Yrd Mat Hostile Shots Fired 130 | 5 125 Missed 34 | 2 32 Hits 96 | 3 93 Projectile 96 | 3 93 Critical Strikes 1 | . 1 Damage Taken 805 | 31 774 Core 253 | 10 243 Absorbed by Shields . | . . Core Remaining (%) 96 | 96 . Volleys Fired 12 | 4 8 Largest 2 | 2 1 Hottest 80 | 80 20 Shots Fired 16 | 8 8 Gun 16 | 8 8 Cannon . | . . Launcher . | . . Special . | . . Kinetic 8 | . 8 Thermal 8 | 8 . Explosive . | . . Electromagnetic . | . . Robot Hit Streak 4 | 4 2 Robot Miss Streak 3 | 2 3 Penetration Max . | . . Secondary Targets . | . . Shots Hit Robots 16 | 5 11 Core Hits 5 | 3 2 Critical Kills . | . . Critical Parts Destroyed . | . . Critical Strikes . | . . Melee Attacks 25 | . 25 Impact . | . . Slashing 25 | . 25 Piercing . | . . Sneak Attacks . | . . Combat Hostiles . | . . Follow-up Attacks . | . . Damage Inflicted 291 | 78 213 Guns 101 | 78 23 Cannons . | . . Explosions . | . . Melee 190 | . 190 Ramming . | . . Kinetic 23 | . 23 Thermal 78 | 78 . Explosive . | . . Electromagnetic . | . . Impact . | . . Slashing 190 | . 190 Piercing . | . . Highest Corruption . | . . Average Corruption . | . . Corruption Purged . | . . Corruption Blocked . | . . Overload Shots . | . . Overflow Damage 10 | . 10 Projectiles . | . . Explosions . | . . Melee 10 | . 10 Knockbacks . | . . Impact . | . . Kinetic . | . . Secondary . | . . Self-Inflicted Damage . | . . Shots . | . . Rammed . | . . Targets Rammed . | . . Kicked . | . . Crushed . | . . Highest Temperature 90 | 90 . Average Temperature 48 | 48 . Received Heat Transfer 18 | 18 . Siege Activations . | . . Martial Activations . | . . Shielding Activations . | . . Robots Disrupted . | . . Combat Hostiles . | . . Robots Corrupted . | . . Combat Hostiles . | . . Parts Fried . | . . Impact Corruptions . | . . Robots Melted . | . . Combat Hostiles . | . . Parts Melted . | . . Heat Transferred 175 | 175 . Parts Sabotaged . | . . Parts Stolen . | . . Parts Stripped . | . . Power Chain Reactions . | . . Alert | -11 -10 ------- Run | Yrd Mat Maximum Alert Level . | . . Low Security (%) 100 | 100 100 Level 1 . | . . Level 2 . | . . Level 3 . | . . Level 4 . | . . Level 5 . | . . High Security . | . . Max Security . | . . Peak Influence 30 | 15 30 Initial 9 | . 9 Average 3 | 3 2 Influence Increases 86 | 25 61 Destroy 0b10 Robot/C 60 | 20 40 Destroy 0b10 Robot/NC 5 | 5 . Destroy Leader 10 | . 10 Successful Hack 9 | . 9 Destroy Structure 2 | . 2 Influence Decreases 86 | 10 76 Entered New Map 6 | . 6 Time Decay 58 | 10 48 Lost Part 22 | . 22 Squads Dispatched . | . . Investigation . | . . Extermination . | . . Reinforcement . | . . Assault . | . . Garrison . | . . Intercept . | . . Searches Triggered . | . . Construction Impeded . | . . Haulers Reinforced . | . . Active Scanning Responses . | . . Cargo Convoy Interrupts . | . . Stealth | -11 -10 --------- Run | Yrd Mat Distress Signals 1 | . 1 Communications Jammed . | . . Distress Signals . | . . Times Spotted 8 | 1 7 Peak Tracking Total 5 | 1 5 Tactical Retreats . | . . Traps | -11 -10 ------- Run | Yrd Mat Traps Triggered . | . . Indirectly . | . . Trap Hack Attempts . | . . Triggered . | . . Disarmed . | . . Reprogrammed . | . . Reused . | . . Traps Extracted . | . . Installed . | . . Triggered . | . . Machines | -11 -10 ---------- Run | Yrd Mat Machines Disabled . | . . Max in Single Turn . | . . Machines Repaired . | . . Machines Dismantled . | . . Machines Sabotaged . | . . Overloaded Fab Kills . | . . Hacking | -11 -10 --------- Run | Yrd Mat Machines Accessed 6 | . 6 Terminals 5 | . 5 Fabricators . | . . Repair Stations . | . . Recycling Units 1 | . 1 Scanalyzers . | . . Garrison Access . | . . Total Hacks 13 | . 13 Successful 7 | . 7 Failed 6 | . 6 Catastrophic 2 | . 2 Database Lockouts . | . . Manual . | . . Terminals 12 | . 12 Fabricators . | . . Repair Stations . | . . Recycling Units 1 | . 1 Scanalyzers . | . . Garrison Access . | . . Terminal Hacks 6 | . 6 Robot Analysis 1 | . 1 Emergency Access Points 2 | . 2 Locate Traps 2 | . 2 Zone Layout 1 | . 1 Fabricator Hacks . | . . Repair Station Hacks . | . . Recycling Unit Hacks 1 | . 1 Report Inventory 1 | . 1 Scanalyzer . | . . Garrison Access Hacks . | . . Unauthorized Hacks . | . . Terminals . | . . Fabricators . | . . Repair Stations . | . . Recycling Units . | . . Scanalyzers . | . . Garrison Access . | . . Data Cores Recovered . | . . Used . | . . Hacking Detections 5 | . 5 Full Trace Events . | . . Feedback Events . | . . Feedback Blocked . | . . Robot Schematics Acquired . | . . Robots Built . | . . Authchips . | . . Time . | . . Total Robot Build Rating . | . . Part Schematics Acquired . | . . Parts Built . | . . Authchips . | . . Time . | . . Total Part Build Rating . | . . Part Studies Acquired . | . . Parts Repaired . | . . Time . | . . Parts Recycled . | . . Recycled Matter . | . . Retrieved Matter . | . . Retrieved Components . | . . Parts Scanalyzed . | . . Part Schematics Acquired . | . . Parts Damaged . | . . Bothacking | -11 -10 ------------ Run | Yrd Mat Used RIF Installer . | . . Robots Hacked . | . . Non-combat . | . . Combat . | . . Robot Hacks Applied . | . . Relay Couplers Released . | . . Fabnet Peak Effective % . | . . Robots Rewired . | . . Allies Hacked . | . . Hacks Repelled . | . . Allies | -11 -10 -------- Run | Yrd Mat Total Allies . | . . Largest Group . | . . Highest-Rated Group . | . . Highest-Rated Ally . | . . Total Orders . | . . Ally Attacks . | . . Total Damage . | . . Kills . | . . Allies Corrupted . | . . Allies Melted . | . . Intel | -11 -10 ------- Run | Yrd Mat Active Infowar (turns) 219 | 6 213 Seismic 219 | 6 213 Robot Analysis Total 1 | . 1 Derelict Logs Recovered . | . . Drone Launches . | . . Drone Recoveries . | . . Exploration | -11 -10 ------------- Run | Yrd Mat Turns Passed 426 | 98 328 Spaces Moved 249 | 67 182 Core 14 | 14 . Treads . | . . Legs 235 | 53 182 Wheels . | . . Hover . | . . Flight . | . . Fastest Speed 50 | 50 120 Average Speed 116 | 105 120 Slowest Speed 120 | 120 120 Overloaded Moves . | . . Propulsion Burnouts . | . . Robots Hopped . | . . Potential Cave-ins . | . . Cave-ins Triggered . | . . Exploration Rate (%) 20 | 5 35 Regions Visited 1 Branch Regions . Pre-discovered Areas . | . . Known Exits Taken . | . . Unknown Exits Taken 1 | 1 . Scrap Searched . | . . Spaces Dug 2 | . 2 Terrain Destroyed 2 | . 2 Melee 2 | . 2 Projectile . | . . AOE . | . . Terrain Rammed . | . . Walls Destroyed . | . . Machines Disabled . | . . Actions | -11 -10 --------- Run | Yrd Mat Total 320 | 84 236 Wait 8 | . 8 Move 248 | 66 182 Hop . | . . Pick Up 7 | 6 1 Fast Attach 10 | 6 4 Attach 5 | . 5 Detach . | . . Swap . | . . Drop 5 | 2 3 Fire 12 | 4 8 Melee 25 | . 25 Ram . | . . Kick . | . . Crush . | . . Escape Stasis . | . . Rewire . | . . Trap . | . . Miscellaneous . | . . Route ------- -11/Scrapyard -10/Materials (discovered 2 exits: [*Mat] / [*Min]) History --------- Turn | Location | Event 2 | -11/Scrapyard | Met Revision 17 62 | -11/Scrapyard | Discovered new exit (range 8) 99 | -11/Scrapyard | Entered Materials 117 | -10/Materials | Discovered new exit (range 13) 254 | -10/Materials | Discovered new exit (range 5) 308 | -10/Materials | Build established: Mutant 381 | -10/Materials | Core integrity fell below 50% 410 | -10/Materials | Core integrity fell below 20% 427 | -10/Materials | Destroyed by S-10 Pest with Light Assault Rifle Last Messages --------------- Acquired Lgt. Ion Engine. K-01 Serf collects debris. Aluminum Leg destroyed. K-01 Serf collects debris. Datajack destroyed. K-01 Serf collects debris. K-01 Serf cleans the Nuclear Reactor. K-01 Serf collects debris. Lgt. Ion Engine destroyed. Destroyed Flight Unit. K-01 Serf collects debris. S-10 Pest destroyed. K-01 Serf collects debris. Aluminum Leg destroyed. K-01 Serf cleans the Nuclear Reactor. Aluminum Leg destroyed. K-01 Serf collects debris. Mining Claw destroyed. K-01 Serf cleans the Repair Station. K-01 Serf cleans the Nuclear Reactor. Map ----- +----------------------------------------------------+ | ?????????????????????????????????????????????????? | | ?????????##################??????????????????????? | | ?????????# ?????????????????????? | | ?????????# ?????????????????????? | | ?????????# ?????????????????????? | | ??###########+####### #????????????????????????? | | ??# # #??????????????????????????????? | | ??# !!! # #?# #????????????????????????? | | ??# !! # #?# #????????????????????????? | | ??# !! # #?# ######???????????????????? | | ??# """ # """ #?# ## ???????????????????? | | ??# """ # """ ### ## ???????????????????? | | ??# "Y" """ # """ ## # ???????????????????? | | ??# """ # """ ## # ???????????????????? | | ########+#### """ + + ???????????????????? | | """" # + ## # ???????????????????? | | """" # ### ## # ???????????????????? | | """" + #?# ######## ???????????????????? | | # #?#######??????# ???????????????????? | | # ########???????#####???????????????????? | | ! # # #???###########?????????????????? | | # # ###?# #?????????????????? | | # # "T" + #?#k""" #?????????????????? | | ####### # """ # #?# "R" #?????????????????? | | ?????## ######## ### " "= #?????????????????? | | ?????# ##### # @% #?????????????????? | | ?????# #[%= s"""k#?????????????????? | | ?????# < # s """ + ???????????????? | | ?????# # """ # ???????????????? | | ?????#= ##### ###########?????????????????? | | ?????############# ##########????????????????????? | | ??????????# # #?# #????????????????????? | | ??????????# "" # ### #????????????????????? | | ??????????# "T # + [ #????????????????????? | | ??????????# "" # # "T" #????????????????????? | | ??????????# + + """ #????????????????????? | | ??????????# # # #????????????????????? | | ????#########+#### ########????????????????????? | | ????# # ########## ?????????????? | | ????# "" # ?????????????? | | ????# "" ^+ ! ?????????????? | | ????# "T # ?????????????? | | ????# "" / # ########## ?????????????? | | ????# "" /* #######??????????????????????????? | | ????# #????????????????????????????????? | | ????####+########????????????????????????????????? | | ?####### #???????????????????????????????????????? | | ?# #???????????????????????????????????????? | | ?# #???????????????????????????????????????? | | ?# #???????????????????????????????????????? | +----------------------------------------------------+ Best States ------------- Heat Dissipation 25 Energy Generation 10 Energy Capacity 125 Matter Stores 300 Matter Capacity 300 Sight Range 16 Terrain Scan Density 10 Evasion (%) 55 Item Schematics ----------------- None Robot Schematics ------------------ None Fabricated ------------ Nothing Repaired ---------- Nothing Studied --------- None Alien Tech Used ----------------- None Achievements -------------- None Challenges ------------ None Game ------ Seed GuidanceCatalystGenerator Manual? 0 Play Time 00:07:46 Cumulative 14.5 hours Start 2026.02.12 @ 02:16:12 End 2026.02.12 @ 02:23:14 Sessions 1 Manual Loads 0 Difficulty Rogue Special Mode None Game No. 13 Rogue 13 Adventurer 0 Explorer 0 Win Type - Total 0 Types 0/0/0/0/0/0/0/0/0/0 Lore% 10 Gallery% 12 Achievement% 12 Wizard Run 0 Options --------- Layout 1 ASCII 0 Keyboard 1 Movement Arrows Keybinds 0 Fullscreen 2 Font 24/Smallcaps Map View 50x35 Zoom Use 0% Tactical HUD 0 Map Filters NONE Filters NONE Steam 1 RUN: dc5d9c55-8bf4-4d17-9c4f-2c25fe45b994